[Event "WTCC-50 2018"]
[Site "Radebeul"]
[Date "2018.07.07"]
[Round "1"]
[White "Kock, Hans Uwe"]
[Black "Ernst, Michael"]
[Result "1-0"]
[ECO "D40"]
[WhiteElo "1961"]
[BlackElo "2156"]
[Annotator "NA"]
[PlyCount "72"]
[EventDate "2018.07.07"]
[EventType "team-tourn"]
[EventCountry "GER"]
[SourceTitle "playchess.com"]
[Source "ChessBase"]
[SourceQuality "1"]
[TimeControl "40/5400+30:1800+30"]

1. d4 {[%emt 0:00:00]} Nf6 {[%emt 0:00:00]} 2. c4 {[%emt 0:00:00]} e6 {[%emt 0:00:00]} 3. Nf3 {[%emt 0:00:16]} d5 {[%emt 0:00:00]} 4. Nc3 {[%emt 0:00:40]} c5 {[%emt 0:00:00]} 5. Bg5 {[%emt 0:01:35]} cxd4 {[%emt 0:02:06]} 6. Nxd4 {[%emt 0:01:24]} Be7 {[%emt 0:00:53]} 7. cxd5 {[%emt 0:00:55]} Nxd5 {[%emt 0:01:24]} 8. Bxe7 {[%emt 0:01:31]} Nxe7 {[%emt 0:02:27]} 9. e3 {[%emt 0:01:42]} Nbc6 {[%emt 0:12:19]} 10. Nxc6 {[%emt 0:03:29]} Nxc6 {[%emt 0:02:28]} 11. Qxd8+ {[%emt 0:01:22]} Kxd8 {[%emt 0:00:17]} 12. O-O-O+ {[%emt 0:00:39]} Ke7 {[%emt 0:00:28]} 13. Be2 {[%emt 0:02:46]} Bd7 {[%emt 0:02:23]} 14. Rd2 {[%emt 0:06:14]} Rhd8 {[%emt 0:06:51]} 15. Rhd1 {[%emt 0:00:54]} Be8 {[%emt 0:06:27]} 16. Bf3 {[%emt 0:11:59]} Rxd2 {[%emt 0:00:59]} 17. Rxd2 {[%emt 0:00:14]} Na5 {[%emt 0:02:46]} 18. b3 {[%emt 0:02:55]} Rc8 {[%emt 0:01:05]} 19. Kb2 {[%emt 0:03:45]} Bc6 {[%emt 0:01:28]} 20. Bxc6 {[%emt 0:02:12]} Nxc6 {[%emt 0:00:07]} 21. f4 {[%emt 0:01:29]} f5 {[%emt 0:01:01]} 22. Nb5 {[%emt 0:04:04]} a6 {[%emt 0:01:31]} 23. Nd4 {[%emt 0:00:56]} Nb4 {[%emt 0:02:07]} 24. Nf3 {[%emt 0:09:10]} Nd5 {[%emt 0:00:52]} 25. Ne5 {[%emt 0:01:05]} Rc7 {[%emt 0:01:31]} 26. Rd3 {[%emt 0:00:54]} h6 {[%emt 0:00:33]} 27. h4 {[%emt 0:03:44]} Kf6 {[%emt 0:07:04]} 28. h5 {[%emt 0:02:13]} Ke7 {[%emt 0:00:49]} 29. Ng6+ {[%emt 0:01:20]} Ke8 {[%emt 0:03:40]} 30. g4 {[%emt 0:16:00]} fxg4 {[%emt 0:02:21]} 31. e4 {[%emt 0:02:36]} Nf6 {[%emt 0:08:08]} 32. f5 {[%emt 0:08:19]} exf5 {[%emt 0:02:26]} 33. exf5 {[%emt 0:00:19]} Nxh5 {[%emt 0:00:47]} 34. Re3+ {[%emt 0:01:52]} Kd8 {[%emt 0:02:43]} 35. Nf8 {[%emt 0:07:48]} Re7 {[%emt 0:02:24]} 36. Ne6+ {[%emt 0:00:51]} Ke8 {[%emt 0:01:25]} 1-0

[Event "WTCC-50 2018"]
[Site "Radebeul"]
[Date "2018.07.07"]
[Round "1"]
[White "Dieterle Bard, Bernhard"]
[Black "Arkell, Keith C"]
[Result "0-1"]
[ECO "B12"]
[WhiteElo "1960"]
[BlackElo "2406"]
[Annotator "NA"]
[PlyCount "52"]
[EventDate "2018.07.07"]
[EventType "team-tourn"]
[EventCountry "GER"]
[SourceTitle "playchess.com"]
[Source "ChessBase"]
[SourceQuality "1"]
[TimeControl "40/5400+30:1800+30"]

1. e4 {[%emt 0:00:00]} c6 {[%emt 0:00:00]} 2. d4 {[%emt 0:00:06]} d5 {[%emt 0:00:00]} 3. e5 {[%emt 0:01:02]} c5 {[%emt 0:00:00]} 4. dxc5 {[%emt 0:00:42]} Nc6 {[%emt 0:00:00]} 5. Bb5 {[%emt 0:00:57]} e6 {[%emt 0:00:03]} 6. b4 {[%emt 0:01:39]} Qh4 {[%emt 0:02:14]} 7. c3 {[%emt 0:22:33]} Qe4+ {[%emt 0:00:06]} 8. Qe2 {[%emt 0:00:26]} Qxg2 {[%emt 0:00:11]} 9. Qf3 {[%emt 0:00:23]} Qxf3 {[%emt 0:00:09]} 10. Nxf3 {[%emt 0:00:01]} Bd7 {[%emt 0:00:17]} 11. Bxc6 {[%emt 0:07:05]} Bxc6 {[%emt 0:00:05]} 12. a4 {[%emt 0:01:36]} d4 {[%emt 0:00:57]} 13. Ke2 {[%emt 0:02:55]} d3+ {[%emt 0:12:01]} 14. Ke3 {[%emt 0:00:02]} Ne7 {[%emt 0:01:40]} 15. Nbd2 {[%emt 0:03:06]} Rd8 {[%emt 0:04:15]} 16. Rg1 {[%emt 0:15:32]} Nd5+ {[%emt 0:03:18]} 17. Kxd3 {[%emt 0:04:09]} Nxb4+ {[%emt 0:00:25]} 18. Kc4 {[%emt 0:02:41]} Nd3 {[%emt 0:04:46]} 19. Ba3 {[%emt 0:06:43]} Nxf2 {[%emt 0:01:33]} 20. Nd4 {[%emt 0:02:02]} Bd5+ {[%emt 0:02:13]} 21. Kb5 {[%emt 0:02:20]} Nd3 {[%emt 0:01:18]} 22. N2f3 {[%emt 0:04:08]} Rc8 {[%emt 0:01:19]} 23. c4 {[%emt 0:05:00]} Bxf3 {[%emt 0:00:52]} 24. Nxf3 {[%emt 0:00:02]} Bxc5 {[%emt 0:00:46]} 25. Rgd1 {[%emt 0:02:55]} Bxa3 {[%emt 0:00:18]} 26. Rxa3 {[%emt 0:01:35]} Rc5# {[%emt 0:00:06]} 0-1

[Event "WTCC-50 2018"]
[Site "Radebeul"]
[Date "2018.07.07"]
[Round "1"]
[White "Hahn, Andreas"]
[Black "Findlay, Ian T"]
[Result "0-1"]
[ECO "B50"]
[WhiteElo "1863"]
[BlackElo "2244"]
[Annotator "NA"]
[PlyCount "78"]
[EventDate "2018.07.07"]
[EventType "team-tourn"]
[EventCountry "GER"]
[SourceTitle "playchess.com"]
[Source "ChessBase"]
[SourceQuality "1"]
[TimeControl "40/5400+30:1800+30"]

1. e4 {[%emt 0:02:19]} c5 {[%emt 0:00:00]} 2. Nf3 {[%emt 0:00:25]} d6 {[%emt 0:00:00]} 3. Bc4 {[%emt 0:00:23]} Nc6 {[%emt 0:00:12]} 4. Nc3 {[%emt 0:01:04]} g6 {[%emt 0:00:23]} 5. h3 {[%emt 0:01:06]} Bg7 {[%emt 0:00:11]} 6. O-O {[%emt 0:00:28]} Nf6 {[%emt 0:00:25]} 7. d3 {[%emt 0:00:23]} O-O {[%emt 0:00:28]} 8. a3 {[%emt 0:01:16]} a6 {[%emt 0:03:36]} 9. Ne2 {[%emt 0:01:51]} d5 {[%emt 0:01:16]} 10. exd5 {[%emt 0:01:18]} Nxd5 {[%emt 0:00:06]} 11. c3 {[%emt 0:00:12]} b5 {[%emt 0:01:51]} 12. Ba2 {[%emt 0:00:11]} Bb7 13. Be3 {[%emt 0:03:05]} Qd6 {[%emt 0:13:08]} 14. Qc2 {[%emt 0:06:21]} Ne5 {[%emt 0:05:59]} 15. Nxe5 {[%emt 0:03:43]} Qxe5 {[%emt 0:00:23]} 16. Bc1 {[%emt 0:07:14]} Rad8 {[%emt 0:03:12]} 17. f4 {[%emt 0:05:13]} Qd6 {[%emt 0:21:43]} 18. f5 {[%emt 0:05:24]} Qe5 {[%emt 0:04:08]} 19. fxg6 {[%emt 0:05:28]} hxg6 {[%emt 0:00:20]} 20. d4 {[%emt 0:03:17]} cxd4 {[%emt 0:03:28]} 21. Nxd4 {[%emt 0:01:29]} Ne3 {[%emt 0:02:59]} 22. Bxe3 {[%emt 0:01:29]} Qxe3+ {[%emt 0:00:03]} 23. Rf2 {[%emt 0:01:28]} e6 {[%emt 0:07:04]} 24. Nf3 {[%emt 0:06:48]} Bxf3 {[%emt 0:03:12]} 25. gxf3 {[%emt 0:00:13]} Rd7 {[%emt 0:01:57]} 26. Qe4 {[%emt 0:01:16]} Qc5 {[%emt 0:00:55]} 27. h4 {[%emt 0:03:37]} Rd2 {[%emt 0:02:52]} 28. Raf1 {[%emt 0:00:48]} Rxb2 {[%emt 0:00:17]} 29. Kg2 {[%emt 0:02:16]} Qxa3 {[%emt 0:03:17]} 30. Bxe6 {[%emt 0:05:57]} Rxf2+ {[%emt 0:00:50]} 31. Kxf2 {[%emt 0:01:52]} Qc5+ {[%emt 0:00:36]} 32. Kg2 {[%emt 0:00:48]} fxe6 {[%emt 0:01:29]} 33. Qxe6+ {[%emt 0:00:50]} Kh7 {[%emt 0:00:08]} 34. Qxa6 {[%emt 0:05:21]} Re8 {[%emt 0:01:38]} 35. Qb7 {[%emt 0:02:10]} Re2+ {[%emt 0:00:29]} 36. Kg3 {[%emt 0:01:11]} Qe5+ {[%emt 0:02:36]} 37. f4 {[%emt 0:02:35]} Qxc3+ {[%emt 0:01:18]} 38. Kg4 {[%emt 0:00:26]} Re3 {[%emt 0:01:47]} 39. Rg1 {[%emt 0:01:35]} Qc5 {[%emt 0:00:17]} 0-1

[Event "WTCC-50 2018"]
[Site "Radebeul"]
[Date "2018.07.10"]
[Round "4"]
[White "Levin, Felix"]
[Black "Bischoff, Klaus"]
[Result "1-0"]
[ECO "A41"]
[WhiteElo "2468"]
[BlackElo "2510"]
[Annotator "ChessBase"]
[PlyCount "99"]
[EventDate "2018.07.07"]
[EventType "team-tourn"]
[EventCountry "GER"]
[SourceTitle "playchess.com"]
[Source "ChessBase"]
[SourceQuality "1"]
[TimeControl "40/5400+30:1800+30"]

1. d4 {[%emt 0:00:00]} d6 {[%emt 0:00:00]} 2. Nf3 {[%emt 0:00:43]} g6 {[%emt 0:00:55]} 3. g3 {[%emt 0:02:04]} Bg7 {[%emt 0:00:39]} 4. Bg2 {[%emt 0:00:06]} c5 {[%emt 0:07:21]} 5. O-O {[%emt 0:14:01]} cxd4 {[%emt 0:02:58]} 6. Nxd4 {[%emt 0:00:17]} Qb6 {[%emt 0:01:54]} 7. Nb3 {[%emt 0:01:46]} Qc7 {[%emt 0:03:06]} 8. e4 {[%emt 0:11:05]} Nd7 {[%emt 0:05:28]} 9. Re1 {[%emt 0:00:56]} a6 {[%emt 0:11:33]} 10. a4 {[%emt 0:03:16]} Ngf6 {[%emt 0:04:10]} 11. Nc3 {[%emt 0:01:38]} e6 {[%emt 0:00:57]} 12. a5 {[%emt 0:04:39]} Ne5 {[%emt 0:01:27]} 13. Na4 {[%emt 0:14:55]} Nfd7 {[%emt 0:05:37]} 14. Be3 {[%emt 0:11:47]} Nc4 {[%emt 0:02:11]} 15. Bd4 {[%emt 0:01:08]} e5 {[%emt 0:00:31]} 16. Bc3 {[%emt 0:01:09]} Nf6 {[%emt 0:00:26]} 17. Bf1 {[%emt 0:02:07]} Bg4 {[%emt 0:02:57]} 18. f3 {[%emt 0:03:27]} Be6 {[%emt 0:00:42]} 19. Bxc4 {[%emt 0:01:11]} Bxc4 {[%emt 0:00:06]} 20. Nb6 {[%emt 0:00:06]} Rd8 {[%emt 0:00:05]} 21. Bb4 {[%emt 0:02:30]} Be6 {[%emt 0:06:46]} 22. c4 {[%emt 0:04:16]} h5 {[%emt 0:01:41]} 23. Qd3 {[%emt 0:04:30]} Bf8 {[%emt 0:06:11]} 24. Bd2 {[%emt 0:02:04]} Be7 {[%emt 0:00:48]} 25. Be3 {[%emt 0:00:36]} Kf8 {[%emt 0:07:39]} 26. Rac1 {[%emt 0:03:41]} Kg7 {[%emt 0:00:13]} 27. Nd2 {[%emt 0:01:46]} h4 {[%emt 0:02:44]} 28. g4 {[%emt 0:00:13]} Nh7 {[%emt 0:00:08]} 29. b4 {[%emt 0:01:40]} Bg5 {[%emt 0:01:31]} 30. Nf1 {[%emt 0:02:46]} Qe7 {[%emt 0:00:23]} 31. Nd5 {[%emt 0:01:00]} Bxd5 {[%emt 0:01:08]} 32. cxd5 {[%emt 0:00:11]} Qf6 {[%emt 0:00:39]} 33. Nd2 {[%emt 0:00:36]} Rc8 {[%emt 0:00:15]} 34. Rc3 {[%emt 0:02:35]} Bxe3+ {[%emt 0:03:14]} 35. Rxe3 {[%emt 0:00:37]} Rxc3 {[%emt 0:00:26]} 36. Qxc3 {[%emt 0:00:02]} Qf4 {[%emt 0:00:07]} 37. Nf1 {[%emt 0:00:50]} Ng5 {[%emt 0:00:06]} 38. Kg2 {[%emt 0:00:49]} Nxf3 {[%emt 0:05:01]} 39. Rxf3 {[%emt 0:00:07]} Qxg4+ {[%emt 0:00:07]} 40. Kf2 {[%emt 0:00:53]} Qxe4 {[%emt 0:00:06]} 41. Ne3 {[%emt 0:30:28]} Rf8 {[%emt 0:35:55]} 42. Qc4 {[%emt 0:01:01]} Qb1 {[%emt 0:00:57]} 43. Qxh4 {[%emt 0:00:33]} Qb2+ {[%emt 0:00:32]} 44. Kg1 {[%emt 0:00:00]} e4 {[%emt 0:00:00]} 45. Nf5+ {[%emt 0:00:00]} Kg8 {[%emt 0:00:00]} 46. Qxe4 {[%emt 0:00:00]} Qc1+ {[%emt 0:00:00]} 47. Rf1 {[%emt 0:00:00]} Qg5+ {[%emt 0:00:00]} 48. Ng3 {[%emt 0:00:00]} f5 {[%emt 0:00:00]} 49. Qe6+ {[%emt 0:00:00]} Kg7 {[%emt 0:00:00]} 50. Kh1 {[%emt 0:00:00]} 1-0

[Event "WTCC-50 2018"]
[Site "Radebeul"]
[Date "2018.07.10"]
[Round "4"]
[White "Tischbierek, Raj"]
[Black "Meister, Jakob"]
[Result "0-1"]
[ECO "B40"]
[WhiteElo "2436"]
[BlackElo "2432"]
[Annotator "ChessBase"]
[PlyCount "106"]
[EventDate "2018.07.07"]
[EventType "team-tourn"]
[EventCountry "GER"]
[SourceTitle "playchess.com"]
[Source "ChessBase"]
[SourceQuality "1"]
[TimeControl "40/5400+30:1800+30"]

1. e4 {[%emt 0:00:00]} c5 {[%emt 0:00:00]} 2. Nf3 {[%emt 0:00:00]} e6 {[%emt 0:00:00]} 3. d4 {[%emt 0:00:00]} cxd4 {[%emt 0:00:00]} 4. Nxd4 {[%emt 0:00:00]} Nf6 {[%emt 0:00:00]} 5. Nc3 {[%emt 0:00:04]} Nc6 {[%emt 0:02:37]} 6. Nxc6 {[%emt 0:00:20]} bxc6 {[%emt 0:00:03]} 7. e5 {[%emt 0:00:05]} Nd5 {[%emt 0:00:08]} 8. Ne4 {[%emt 0:00:03]} Qa5+ {[%emt 0:00:09]} 9. c3 {[%emt 0:15:26]} f5 {[%emt 0:00:27]} 10. Nd2 {[%emt 0:11:22]} Ba6 {[%emt 0:05:27]} 11. Bxa6 {[%emt 0:07:54]} Qxa6 {[%emt 0:00:43]} 12. c4 {[%emt 0:03:22]} Nb6 {[%emt 0:04:14]} 13. b3 {[%emt 0:14:35]} Bb4 {[%emt 0:00:53]} 14. Bb2 {[%emt 0:02:04]} Qa5 {[%emt 0:00:16]} 15. a3 {[%emt 0:03:46]} Bc3 {[%emt 0:05:05]} 16. Bxc3 {[%emt 0:04:51]} Qxc3 {[%emt 0:00:55]} 17. f4 {[%emt 0:02:14]} Qe3+ {[%emt 0:00:44]} 18. Qe2 {[%emt 0:00:08]} Qxf4 {[%emt 0:00:32]} 19. Nf3 {[%emt 0:00:11]} Qe4 {[%emt 0:04:54]} 20. a4 {[%emt 0:10:31]} Qxe2+ {[%emt 0:02:42]} 21. Kxe2 {[%emt 0:00:02]} a5 {[%emt 0:01:19]} 22. Kd3 {[%emt 0:02:59]} c5 {[%emt 0:03:54]} 23. Kc3 {[%emt 0:00:14]} Nc8 {[%emt 0:00:03]} 24. Rad1 {[%emt 0:04:42]} Ne7 {[%emt 0:00:42]} 25. Rd6 {[%emt 0:00:34]} Nc6 {[%emt 0:00:21]} 26. Rhd1 {[%emt 0:01:30]} Ra7 {[%emt 0:00:11]} 27. Rxc6 {[%emt 0:03:33]} dxc6 {[%emt 0:00:02]} 28. Rd6 {[%emt 0:00:12]} O-O {[%emt 0:07:01]} 29. Rxc6 {[%emt 0:01:06]} h6 {[%emt 0:01:43]} 30. h4 {[%emt 0:00:40]} g5 {[%emt 0:05:18]} 31. hxg5 {[%emt 0:03:48]} hxg5 {[%emt 0:01:11]} 32. Nxg5 {[%emt 0:00:42]} Rg7 {[%emt 0:01:35]} 33. Nxe6 {[%emt 0:00:29]} Rg3+ {[%emt 0:00:29]} 34. Kd2 {[%emt 0:00:52]} Re8 {[%emt 0:00:39]} 35. Ke2 {[%emt 0:06:40]} Rxb3 {[%emt 0:02:20]} 36. Nxc5 {[%emt 0:01:13]} Rxe5+ {[%emt 0:00:47]} 37. Kf2 {[%emt 0:00:03]} Ra3 {[%emt 0:00:46]} 38. Nd7 {[%emt 0:01:04]} Ra2+ {[%emt 0:03:02]} 39. Kf3 {[%emt 0:00:24]} Re1 {[%emt 0:00:03]} 40. Kf4 {[%emt 0:01:28]} Rxg2 {[%emt 0:03:11]} 41. Kxf5 {[%emt 0:07:36]} Rf2+ {[%emt 0:02:31]} 42. Kg4 {[%emt 0:00:12]} Rg1+ {[%emt 0:00:38]} 43. Kh3 {[%emt 0:00:12]} Kg7 {[%emt 0:00:57]} 44. Rc5 {[%emt 0:04:24]} Rf7 {[%emt 0:07:21]} 45. Kh2 {[%emt 0:07:25]} Re1 {[%emt 0:12:14]} 46. Rg5+ {[%emt 0:02:06]} Kh6 {[%emt 0:01:07]} 47. Rd5 {[%emt 0:00:13]} Re2+ {[%emt 0:02:27]} 48. Kg3 {[%emt 0:00:22]} Re3+ {[%emt 0:00:04]} 49. Kg2 {[%emt 0:00:24]} Ra3 {[%emt 0:03:56]} 50. Nb6 {[%emt 0:00:47]} Rf6 {[%emt 0:08:18]} 51. c5 {[%emt 0:00:56]} Rc3 {[%emt 0:01:45]} 52. Nd7 {[%emt 0:01:35]} Rf4 {[%emt 0:01:05]} 53. Rd6+ {[%emt 0:07:29]} Kg7 {[%emt 0:01:38]} 0-1

[Event "WTCC-50 2018"]
[Site "Radebeul"]
[Date "2018.07.10"]
[Round "4"]
[White "Arkell, Keith C"]
[Black "Kudrin, Sergey"]
[Result "1/2-1/2"]
[ECO "A48"]
[WhiteElo "2406"]
[BlackElo "2468"]
[Annotator "ChessBase"]
[PlyCount "29"]
[EventDate "2018.07.07"]
[EventType "team-tourn"]
[EventCountry "GER"]
[SourceTitle "playchess.com"]
[Source "ChessBase"]
[SourceQuality "1"]
[TimeControl "40/5400+30:1800+30"]

1. d4 {[%emt 0:00:00]} Nf6 {[%emt 0:00:00]} 2. Nf3 {[%emt 0:00:00]} g6 {[%emt 0:00:00]} 3. c4 {[%emt 0:00:09]} Bg7 {[%emt 0:00:00]} 4. Nc3 {[%emt 0:00:05]} d5 {[%emt 0:00:06]} 5. cxd5 {[%emt 0:00:06]} Nxd5 {[%emt 0:00:09]} 6. g3 {[%emt 0:00:07]} Nb6 {[%emt 0:00:35]} 7. Bg2 {[%emt 0:00:06]} Nc6 {[%emt 0:00:09]} 8. e3 {[%emt 0:00:06]} O-O {[%emt 0:00:09]} 9. O-O {[%emt 0:00:04]} Re8 {[%emt 0:00:14]} 10. b3 {[%emt 0:00:12]} e5 {[%emt 0:00:21]} 11. Nxe5 {[%emt 0:00:07]} Nxe5 {[%emt 0:00:10]} 12. dxe5 {[%emt 0:00:06]} Qxd1 {[%emt 0:01:05]} 13. Rxd1 {[%emt 0:00:06]} Bxe5 {[%emt 0:00:09]} 14. Bb2 {[%emt 0:00:05]} c6 {[%emt 0:00:11]} 15. Rd2 {[%emt 0:00:58]} 1/2-1/2

[Event "WTCC-50 2018"]
[Site "Radebeul"]
[Date "2018.07.10"]
[Round "4"]
[White "Schulz, Klaus-Juergen"]
[Black "Paehtz, Thomas"]
[Result "1/2-1/2"]
[ECO "A46"]
[WhiteElo "2324"]
[BlackElo "2347"]
[Annotator "NA"]
[PlyCount "22"]
[EventDate "2018.07.07"]
[EventType "team-tourn"]
[EventCountry "GER"]
[SourceTitle "playchess.com"]
[Source "ChessBase"]
[SourceQuality "1"]
[TimeControl "40/5400+30:1800+30"]

1. d4 {[%emt 0:01:50]} Nf6 {[%emt 0:00:00]} 2. Nf3 {[%emt 0:00:27]} c5 {[%emt 0:00:12]} 3. e3 {[%emt 0:07:38]} g6 {[%emt 0:01:14]} 4. c4 {[%emt 0:03:11]} cxd4 {[%emt 0:00:16]} 5. exd4 {[%emt 0:00:53]} d5 {[%emt 0:00:09]} 6. cxd5 {[%emt 0:05:11]} Bg7 {[%emt 0:08:46]} 7. Bb5+ {[%emt 0:01:34]} Nbd7 {[%emt 0:05:52]} 8. d6 {[%emt 0:04:39]} exd6 {[%emt 0:08:29]} 9. Qe2+ {[%emt 0:00:36]} Qe7 {[%emt 0:04:05]} 10. Bf4 {[%emt 0:00:28]} Qxe2+ {[%emt 0:01:06]} 11. Bxe2 {[%emt 0:17:42]} d5 {[%emt 0:03:14]} 1/2-1/2

[Event "WTCC-50 2018"]
[Site "Radebeul"]
[Date "2018.07.10"]
[Round "4"]
[White "Lewis, Andrew P"]
[Black "Preuss, Heiko"]
[Result "1-0"]
[ECO "A21"]
[WhiteElo "2298"]
[BlackElo "2235"]
[Annotator "NA"]
[PlyCount "39"]
[EventDate "2018.07.07"]
[EventType "team-tourn"]
[EventCountry "GER"]
[SourceTitle "playchess.com"]
[Source "ChessBase"]
[SourceQuality "1"]
[TimeControl "40/5400+30:1800+30"]

1. c4 {[%emt 0:00:00]} e5 {[%emt 0:00:23]} 2. Nc3 {[%emt 0:00:00]} g6 {[%emt 0:01:11]} 3. d4 {[%emt 0:06:36]} Bg7 {[%emt 0:02:08]} 4. dxe5 {[%emt 0:01:14]} Bxe5 {[%emt 0:00:55]} 5. Nf3 {[%emt 0:00:26]} Bg7 {[%emt 0:00:53]} 6. Bg5 {[%emt 0:09:52]} f6 {[%emt 0:00:33]} 7. Bh4 {[%emt 0:03:01]} d6 {[%emt 0:02:19]} 8. e4 {[%emt 0:01:01]} Ne7 {[%emt 0:04:22]} 9. c5 {[%emt 0:12:53]} dxc5 {[%emt 0:05:01]} 10. Qxd8+ {[%emt 0:01:43]} Kxd8 {[%emt 0:00:05]} 11. e5 {[%emt 0:00:11]} g5 {[%emt 0:11:47]} 12. exf6 {[%emt 0:07:48]} Bxf6 {[%emt 0:00:06]} 13. Bxg5 {[%emt 0:00:11]} Nd7 {[%emt 0:04:46]} 14. O-O-O {[%emt 0:05:30]} Rf8 {[%emt 0:02:43]} 15. Ne4 {[%emt 0:05:15]} Ke8 {[%emt 0:01:47]} 16. Bb5 {[%emt 0:08:34]} c6 {[%emt 0:11:49]} 17. Bc4 {[%emt 0:05:30]} Bxg5+ {[%emt 0:05:29]} 18. Nfxg5 {[%emt 0:00:09]} Ne5 {[%emt 0:01:16]} 19. Nd6+ {[%emt 0:02:02]} Kd8 {[%emt 0:01:34]} 20. Ndf7+ {[%emt 0:00:29]} 1-0

[Event "WTCC-50 2018"]
[Site "Radebeul"]
[Date "2018.07.10"]
[Round "4"]
[White "Brueggemann, Joachim"]
[Black "Wolf, Volker"]
[Result "1-0"]
[ECO "C41"]
[WhiteElo "2293"]
[BlackElo "2323"]
[Annotator "NA"]
[PlyCount "73"]
[EventDate "2018.07.07"]
[EventType "team-tourn"]
[EventCountry "GER"]
[SourceTitle "playchess.com"]
[Source "ChessBase"]
[SourceQuality "1"]
[TimeControl "40/5400+30:1800+30"]

1. e4 d6 {[%emt 0:00:00]} 2. d4 {[%emt 0:00:00]} Nf6 {[%emt 0:00:00]} 3. Nc3 {[%emt 0:00:00]} e5 {[%emt 0:00:13]} 4. Nf3 {[%emt 0:00:00]} Nbd7 {[%emt 0:00:09]} 5. Bc4 {[%emt 0:00:12]} Be7 {[%emt 0:00:10]} 6. O-O {[%emt 0:00:19]} O-O {[%emt 0:00:09]} 7. Re1 {[%emt 0:00:56]} a6 {[%emt 0:04:30]} 8. a4 {[%emt 0:00:05]} h6 {[%emt 0:00:26]} 9. Ba2 {[%emt 0:02:34]} b6 {[%emt 0:03:50]} 10. h3 {[%emt 0:07:59]} Bb7 {[%emt 0:01:30]} 11. d5 {[%emt 0:03:44]} Nh7 {[%emt 0:06:23]} 12. Ne2 {[%emt 0:01:04]} Nc5 {[%emt 0:02:18]} 13. Nc3 {[%emt 0:06:04]} a5 {[%emt 0:02:09]} 14. Bc4 {[%emt 0:01:51]} Kh8 {[%emt 0:06:23]} 15. Be3 {[%emt 0:01:41]} Bc8 {[%emt 0:02:18]} 16. Bd3 {[%emt 0:08:28]} Bd7 {[%emt 0:15:49]} 17. Ra3 {[%emt 0:04:49]} Nxd3 {[%emt 0:08:50]} 18. Qxd3 {[%emt 0:05:14]} f5 {[%emt 0:00:15]} 19. exf5 {[%emt 0:00:15]} Bxf5 {[%emt 0:00:10]} 20. Qe2 {[%emt 0:00:53]} Nf6 {[%emt 0:02:24]} 21. Rd1 {[%emt 0:11:02]} Qd7 {[%emt 0:01:09]} 22. Nh2 {[%emt 0:02:23]} Rae8 {[%emt 0:00:56]} 23. Nf1 {[%emt 0:00:38]} Bd8 {[%emt 0:00:53]} 24. Ng3 {[%emt 0:00:20]} Bg6 {[%emt 0:00:07]} 25. Rd2 {[%emt 0:02:01]} Qf7 {[%emt 0:00:46]} 26. Qb5 {[%emt 0:04:39]} Qg8 {[%emt 0:01:52]} 27. b4 {[%emt 0:00:54]} axb4 {[%emt 0:00:15]} 28. Qxb4 {[%emt 0:00:11]} Qh7 {[%emt 0:00:25]} 29. Qc4 {[%emt 0:00:56]} Rf7 {[%emt 0:03:41]} 30. a5 {[%emt 0:01:28]} bxa5 {[%emt 0:00:28]} 31. Rxa5 {[%emt 0:00:19]} Ref8 {[%emt 0:08:04]} 32. Ra8 Kg8 {[%emt 0:04:43]} 33. Qa4 {[%emt 0:06:40]} h5 {[%emt 0:03:30]} 34. Bg5 {[%emt 0:04:45]} Nxd5 {[%emt 0:02:09]} 35. Rxd8 {[%emt 0:00:09]} Nxc3 {[%emt 0:00:11]} 36. Rxf8+ {[%emt 0:00:05]} Rxf8 {[%emt 0:00:18]} 37. Qc4+ {[%emt 0:00:05]} 1-0

[Event "WTCC-50 2018"]
[Site "Radebeul"]
[Date "2018.07.10"]
[Round "4"]
[White "Weitzer, Steffen"]
[Black "Rudolf, Matthias"]
[Result "1-0"]
[ECO "C10"]
[WhiteElo "2288"]
[BlackElo "2102"]
[Annotator "NA"]
[PlyCount "69"]
[EventDate "2018.07.07"]
[EventType "team-tourn"]
[EventCountry "GER"]
[SourceTitle "playchess.com"]
[Source "ChessBase"]
[SourceQuality "1"]
[TimeControl "40/5400+30:1800+30"]

1. e4 {[%emt 0:00:00]} e6 {[%emt 0:00:00]} 2. d4 {[%emt 0:00:00]} d5 {[%emt 0:00:00]} 3. Nc3 {[%emt 0:00:00]} Nc6 {[%emt 0:00:54]} 4. Nf3 {[%emt 0:03:22]} Nf6 {[%emt 0:00:26]} 5. e5 {[%emt 0:01:09]} Ne4 {[%emt 0:00:19]} 6. Bd3 {[%emt 0:00:59]} Bb4 {[%emt 0:02:52]} 7. O-O {[%emt 0:09:02]} Nxc3 {[%emt 0:00:11]} 8. bxc3 {[%emt 0:00:26]} Bxc3 {[%emt 0:00:10]} 9. Rb1 {[%emt 0:00:29]} Bb4 {[%emt 0:00:41]} 10. Ng5 {[%emt 0:05:43]} Be7 {[%emt 0:05:46]} 11. Qh5 {[%emt 0:07:41]} g6 {[%emt 0:01:09]} 12. Qh6 {[%emt 0:00:30]} Bf8 {[%emt 0:00:55]} 13. Qh3 {[%emt 0:01:07]} h6 {[%emt 0:04:33]} 14. c3 {[%emt 0:05:40]} b6 {[%emt 0:11:20]} 15. Re1 {[%emt 0:07:20]} Be7 {[%emt 0:09:14]} 16. f4 {[%emt 0:12:25]} Bf8 {[%emt 0:17:38]} 17. Kh1 {[%emt 0:02:28]} Qd7 {[%emt 0:05:52]} 18. f5 {[%emt 0:02:52]} gxf5 {[%emt 0:03:45]} 19. Bxf5 {[%emt 0:01:23]} hxg5 {[%emt 0:14:44]} 20. Qxh8 {[%emt 0:03:57]} exf5 {[%emt 0:00:03]} 21. Ba3 {[%emt 0:01:57]} Ne7 {[%emt 0:01:12]} 22. e6 {[%emt 0:00:24]} fxe6 {[%emt 0:02:26]} 23. Qh5+ {[%emt 0:00:20]} Kd8 {[%emt 0:00:08]} 24. Qxg5 {[%emt 0:01:41]} c5 {[%emt 0:05:47]} 25. Qf6 {[%emt 0:06:33]} Qe8 {[%emt 0:05:15]} 26. Re3 {[%emt 0:03:24]} Kc7 {[%emt 0:04:00]} 27. dxc5 {[%emt 0:04:12]} Bd7 {[%emt 0:01:44]} 28. c4 {[%emt 0:04:49]} Qg6 {[%emt 0:01:13]} 29. Qe5+ {[%emt 0:01:09]} Kb7 {[%emt 0:00:24]} 30. cxb6 {[%emt 0:01:25]} axb6 {[%emt 0:00:08]} 31. Rxb6+ {[%emt 0:04:32]} Kxb6 {[%emt 0:01:12]} 32. Rb3+ {[%emt 0:00:09]} Ka6 {[%emt 0:00:49]} 33. Qc7 {[%emt 0:00:43]} e5 {[%emt 0:00:58]} 34. Qb7+ {[%emt 0:00:11]} Ka5 {[%emt 0:00:01]} 35. Rb5+ {[%emt 0:00:35]} 1-0